[Event "*** Titled Tuesday 3|2 Blitz"]
[Site "Chess.com"]
[Date "2015.07.07"]
[Round "5"]
[White "stepanosinovsky"]
[Black "AungTZ"]
[Result "1-0"]
[WhiteElo "2298"]
[BlackElo "2148"]
[TimeControl "180+2"]
[EndTime "12:01:01 PDT"]
[Termination "stepanosinovsky won by resignation"]

1. e4 {[%clk 0:03:01.9]} 1... c5 {[%clk 0:03:01]} 2. Nf3 {[%clk 0:03:02.8]} 2...
Nc6 {[%clk 0:03:02.6]} 3. Nc3 {[%clk 0:03:03.4]} 3... d6 {[%clk 0:03:02.8]} 4.
d4 {[%clk 0:03:01.9]} 4... cxd4 {[%clk 0:03:03.5]} 5. Nxd4 {[%clk 0:03:03.4]}
5... Nf6 {[%clk 0:03:05.4]} 6. Be3 {[%clk 0:03:02.8]} 6... Ng4 {[%clk
0:03:05.3]} 7. Bb5 {[%clk 0:03:02.7]} 7... Nxe3 {[%clk 0:03:05.8]} 8. fxe3
{[%clk 0:03:04.6]} 8... Bd7 {[%clk 0:03:06.1]} 9. Bxc6 {[%clk 0:03:05.2]} 9...
bxc6 {[%clk 0:03:06.7]} 10. O-O {[%clk 0:03:07.1]} 10... e6 {[%clk 0:02:48]} 11.
Qf3 {[%clk 0:03:06.8]} 11... Qe7 {[%clk 0:02:43.6]} 12. e5 {[%clk 0:02:34]}
12... d5 {[%clk 0:02:41.7]} 13. e4 {[%clk 0:02:30.9]} 13... g6 {[%clk
0:02:34.1]} 14. exd5 {[%clk 0:02:15.5]} 14... cxd5 {[%clk 0:02:34.6]} 15. Rae1
{[%clk 0:00:46.7]} 15... Bg7 {[%clk 0:02:31.8]} 16. Kh1 {[%clk 0:00:47.5]} 16...
O-O {[%clk 0:02:30]} 17. Qf4 {[%clk 0:00:45.7]} 17... Rab8 {[%clk 0:02:27.3]}
18. b3 {[%clk 0:00:45.8]} 18... Rbc8 {[%clk 0:02:21.9]} 19. Nce2 {[%clk
0:00:46.3]} 19... f6 {[%clk 0:02:14.5]} 20. exf6 {[%clk 0:00:45.3]} 20... Rxf6
{[%clk 0:02:15.4]} 21. Qe3 {[%clk 0:00:36.9]} 21... Rxf1+ {[%clk 0:02:02.2]} 22.
Rxf1 {[%clk 0:00:37.6]} 22... Rf8 {[%clk 0:02:00.5]} 23. Rxf8+ {[%clk
0:00:36.4]} 23... Kxf8 {[%clk 0:01:46]} 24. Nf3 {[%clk 0:00:32.6]} 24... Bb5
{[%clk 0:01:27.4]} 25. Nf4 {[%clk 0:00:31.3]} 25... Kf7 {[%clk 0:01:09.8]} 26.
h4 {[%clk 0:00:18.4]} 26... Qf6 {[%clk 0:00:56.5]} 27. Ng5+ {[%clk 0:00:18.1]}
27... Kg8 {[%clk 0:00:53.8]} 28. Qxe6+ {[%clk 0:00:10.8]} 28... Qxe6 {[%clk
0:00:52.4]} 29. Ngxe6 {[%clk 0:00:12.7]} 29... Bf6 {[%clk 0:00:40]} 30. g3
{[%clk 0:00:12.6]} 30... d4 {[%clk 0:00:39.5]} 31. Kg2 {[%clk 0:00:12.3]} 31...
Bc6+ {[%clk 0:00:38.4]} 32. Kf2 {[%clk 0:00:13]} 32... Be4 {[%clk 0:00:37.3]}
33. Nd3 {[%clk 0:00:14.1]} 33... h6 {[%clk 0:00:35.3]} 34. Nec5 {[%clk
0:00:15.2]} 34... Bd5 {[%clk 0:00:28.3]} 35. a4 {[%clk 0:00:15.5]} 35... Kf7
{[%clk 0:00:28.5]} 36. b4 {[%clk 0:00:15.6]} 36... Ke7 {[%clk 0:00:26.6]} 37.
Ke2 {[%clk 0:00:15]} 37... Kd6 {[%clk 0:00:25.1]} 38. Nf4 {[%clk 0:00:14.9]}
38... Bf7 {[%clk 0:00:24.6]} 39. Kd3 {[%clk 0:00:12.9]} 39... a5 {[%clk
0:00:23]} 40. Ne4+ {[%clk 0:00:12.9]} 40... Ke5 {[%clk 0:00:22.9]} 41. Nxf6
{[%clk 0:00:13.8]} 41... Kxf6 {[%clk 0:00:23.8]} 42. bxa5 {[%clk 0:00:15.5]}
42... Ke5 {[%clk 0:00:23.3]} 43. a6 {[%clk 0:00:16]} 43... Be8 {[%clk
0:00:20.7]} 44. a7 {[%clk 0:00:14.9]} 44... Bc6 {[%clk 0:00:21.7]} 45. Nxg6+
{[%clk 0:00:15.8]} 45... Kd5 {[%clk 0:00:19.6]} 46. Ne7+ {[%clk 0:00:16.8]} 1-0

[Event "*** Titled Tuesday 3|2 Blitz"]
[Site "Chess.com"]
[Date "2015.07.07"]
[Round "5"]
[White "ashookk"]
[Black "MasterLeif"]
[Result "0-1"]
[WhiteElo "1952"]
[BlackElo "2271"]
[TimeControl "180+2"]
[EndTime "12:01:02 PDT"]
[Termination "MasterLeif won by resignation"]

1. Nf3 {[%clk 0:03:01.9]} 1... d5 {[%clk 0:02:29.6]} 2. c4 {[%clk 0:03:03.8]}
2... c6 {[%clk 0:02:30.5]} 3. Qc2 {[%clk 0:03:03.2]} 3... Nf6 {[%clk 0:02:31.7]}
4. g3 {[%clk 0:02:53.3]} 4... g6 {[%clk 0:02:29.1]} 5. Bg2 {[%clk 0:02:51.3]}
5... Bg7 {[%clk 0:02:30.5]} 6. O-O {[%clk 0:02:52.4]} 6... O-O {[%clk
0:02:26.6]} 7. d3 {[%clk 0:02:52.7]} 7... Re8 {[%clk 0:02:22.5]} 8. e4 {[%clk
0:02:51.8]} 8... dxe4 {[%clk 0:02:21.1]} 9. dxe4 {[%clk 0:02:52.4]} 9... e5
{[%clk 0:02:21]} 10. Nc3 {[%clk 0:02:52.3]} 10... Bg4 {[%clk 0:02:20]} 11. Rd1
{[%clk 0:02:51]} 11... Qe7 {[%clk 0:02:20.3]} 12. Be3 {[%clk 0:02:49.6]} 12...
Nbd7 {[%clk 0:02:09.8]} 13. Rd2 {[%clk 0:02:39.8]} 13... Nc5 {[%clk 0:01:55.8]}
14. Rad1 {[%clk 0:02:40.9]} 14... Ne6 {[%clk 0:01:49.1]} 15. Ne2 {[%clk
0:02:28.1]} 15... Bxf3 {[%clk 0:01:45.3]} 16. Bxf3 {[%clk 0:02:28.2]} 16... Red8
{[%clk 0:01:44.1]} 17. h4 {[%clk 0:02:24.8]} 17... h5 {[%clk 0:01:44.1]} 18.
Rxd8+ {[%clk 0:01:46.4]} 18... Nxd8 {[%clk 0:01:42.6]} 19. Qd2 {[%clk 0:01:34]}
19... Ne6 {[%clk 0:01:42.1]} 20. Qd6 {[%clk 0:01:29.7]} 20... Qxd6 {[%clk
0:01:43.2]} 21. Rxd6 {[%clk 0:01:29.8]} 21... Bf8 {[%clk 0:01:45.1]} 22. Rd1
{[%clk 0:01:30.3]} 22... Be7 {[%clk 0:01:37.7]} 23. Bg2 {[%clk 0:01:29.6]} 23...
Kf8 {[%clk 0:01:38.7]} 24. Bh3 {[%clk 0:01:29.3]} 24... Ng4 {[%clk 0:01:36.5]}
25. Bc1 {[%clk 0:01:23.4]} 25... Ke8 {[%clk 0:01:35.5]} 26. Kg2 {[%clk
0:01:20.3]} 26... Rd8 {[%clk 0:01:31.6]} 27. Rxd8+ {[%clk 0:01:19.5]} 27... Nxd8
{[%clk 0:01:32]} 28. f3 {[%clk 0:01:21.4]} 28... Nf6 {[%clk 0:01:33.3]} 29. Be3
{[%clk 0:01:21.4]} 29... b6 {[%clk 0:01:27.2]} 30. Kf2 {[%clk 0:01:22.2]} 30...
Nd7 {[%clk 0:01:26.6]} 31. Bxd7+ {[%clk 0:01:19.9]} 31... Kxd7 {[%clk
0:01:27.5]} 32. Ke1 {[%clk 0:01:20.7]} 32... Ne6 {[%clk 0:01:28.7]} 33. Kd2
{[%clk 0:01:21.5]} 33... Bb4+ {[%clk 0:01:25.8]} 34. Kd3 {[%clk 0:01:20.2]}
34... Bc5 {[%clk 0:01:23.2]} 35. Bxc5 {[%clk 0:01:07.2]} 35... Nxc5+ {[%clk
0:01:25.1]} 36. Kc3 {[%clk 0:01:00.9]} 36... a5 {[%clk 0:01:25.3]} 37. b3 {[%clk
0:01:00.5]} 37... f5 {[%clk 0:01:24]} 38. exf5 {[%clk 0:00:56]} 38... gxf5
{[%clk 0:01:25.9]} 39. a3 {[%clk 0:00:57.1]} 39... Ne6 {[%clk 0:01:17.1]} 40. b4
{[%clk 0:00:56.9]} 40... axb4+ {[%clk 0:01:18.1]} 41. axb4 {[%clk 0:00:57.2]}
41... Kd6 {[%clk 0:01:15.4]} 42. Kd3 {[%clk 0:00:56.7]} 42... Nf8 {[%clk
0:01:15.9]} 43. f4 {[%clk 0:00:52.3]} 43... e4+ {[%clk 0:01:15.9]} 44. Kd4
{[%clk 0:00:50.3]} 44... Ne6+ {[%clk 0:01:16.6]} 45. Ke3 {[%clk 0:00:47.4]}
45... c5 {[%clk 0:01:06.6]} 46. b5 {[%clk 0:00:44.3]} 46... Kc7 {[%clk
0:00:42.2]} 47. Nc3 {[%clk 0:00:42.9]} 47... Nd4 {[%clk 0:00:36.7]} 48. Nd5+
{[%clk 0:00:43.9]} 48... Kb7 {[%clk 0:00:38.2]} 49. Nf6 {[%clk 0:00:43.3]} 49...
Nc2+ {[%clk 0:00:36.7]} 50. Kd2 {[%clk 0:00:22.7]} 50... Na3 {[%clk 0:00:37.8]}
51. Kc3 {[%clk 0:00:23.2]} 51... e3 {[%clk 0:00:39.3]} 52. Nxh5 {[%clk
0:00:22.5]} 52... Nxc4 {[%clk 0:00:40.5]} 53. Ng7 {[%clk 0:00:18.4]} 53... e2
{[%clk 0:00:41.7]} 0-1

[Event "*** Titled Tuesday 3|2 Blitz"]
[Site "Chess.com"]
[Date "2015.07.07"]
[Round "5"]
[White "Dlugy"]
[Black "Cruel_Yaro"]
[Result "1-0"]
[WhiteElo "2551"]
[BlackElo "2484"]
[TimeControl "180+2"]
[EndTime "12:01:05 PDT"]
[Termination "Dlugy won by resignation"]

1. d4 {[%clk 0:03:01.9]} 1... Nf6 {[%clk 0:02:58.9]} 2. c4 {[%clk 0:03:03.4]}
2... c5 {[%clk 0:03:00.3]} 3. d5 {[%clk 0:03:04.4]} 3... e6 {[%clk 0:03:01.4]}
4. Nc3 {[%clk 0:03:04.9]} 4... exd5 {[%clk 0:03:02.9]} 5. cxd5 {[%clk
0:03:06.8]} 5... d6 {[%clk 0:03:04.4]} 6. Nf3 {[%clk 0:03:08.5]} 6... g6 {[%clk
0:03:05.7]} 7. Nd2 {[%clk 0:03:10.2]} 7... Bg7 {[%clk 0:03:06.9]} 8. e4 {[%clk
0:03:11.9]} 8... O-O {[%clk 0:03:08]} 9. Be2 {[%clk 0:03:13.5]} 9... Re8 {[%clk
0:03:09]} 10. O-O {[%clk 0:03:14.8]} 10... Na6 {[%clk 0:03:10.5]} 11. f3 {[%clk
0:03:14.9]} 11... Nc7 {[%clk 0:03:11.4]} 12. a4 {[%clk 0:03:15.1]} 12... b6
{[%clk 0:03:12.6]} 13. Nc4 {[%clk 0:03:16.7]} 13... Ba6 {[%clk 0:03:13.3]} 14.
Bg5 {[%clk 0:03:18.1]} 14... Bxc4 {[%clk 0:03:14]} 15. Bxc4 {[%clk 0:03:18.9]}
15... a6 {[%clk 0:03:14.9]} 16. Kh1 {[%clk 0:03:18.5]} 16... Qd7 {[%clk
0:03:14]} 17. Qd3 {[%clk 0:03:18.3]} 17... Nh5 {[%clk 0:03:11.6]} 18. g4 {[%clk
0:03:17.8]} 18... Nf6 {[%clk 0:03:11.5]} 19. Bd2 {[%clk 0:03:13.7]} 19... h5
{[%clk 0:03:09.8]} 20. g5 {[%clk 0:03:14.7]} 20... Nh7 {[%clk 0:03:10.1]} 21. f4
{[%clk 0:03:15.6]} 21... b5 {[%clk 0:02:50.6]} 22. axb5 {[%clk 0:03:16]} 22...
Bxc3 {[%clk 0:02:35.7]} 23. Bxc3 {[%clk 0:02:40.8]} 23... axb5 {[%clk
0:02:35.8]} 24. Rxa8 {[%clk 0:02:40.7]} 24... Rxa8 {[%clk 0:02:23.7]} 25. Bb3
{[%clk 0:02:41.7]} 25... Re8 {[%clk 0:01:46.5]} 26. Bc2 {[%clk 0:02:37.6]} 26...
b4 {[%clk 0:01:12.7]} 27. Bd2 {[%clk 0:02:38.3]} 27... Qb5 {[%clk 0:01:06.4]}
28. Qxb5 {[%clk 0:02:14.2]} 28... Nxb5 {[%clk 0:01:05.2]} 29. Ba4 {[%clk
0:02:14.8]} 29... Rb8 {[%clk 0:01:05.3]} 30. e5 {[%clk 0:02:08.7]} 30... Nf8
{[%clk 0:00:57.1]} 31. Be3 {[%clk 0:01:55.2]} 31... Nd7 {[%clk 0:00:33.3]} 32.
exd6 {[%clk 0:01:55.7]} 32... Rb7 {[%clk 0:00:24.4]} 33. Rc1 {[%clk 0:01:39.4]}
33... Nxd6 {[%clk 0:00:23.5]} 34. Bc6 {[%clk 0:01:34.8]} 34... Ra7 {[%clk
0:00:22.4]} 35. Bxd7 {[%clk 0:01:27.4]} 35... Rxd7 {[%clk 0:00:22.7]} 36. Rxc5
{[%clk 0:01:29]} 36... Nf5 {[%clk 0:00:13.7]} 37. Bd2 {[%clk 0:01:30.2]} 37...
Ne7 {[%clk 0:00:14]} 38. Bxb4 {[%clk 0:01:27.9]} 38... Nxd5 {[%clk 0:00:14.7]}
39. Bd2 {[%clk 0:01:29.2]} 39... Kf8 {[%clk 0:00:15]} 40. Kg2 {[%clk 0:01:26.7]}
40... Ke7 {[%clk 0:00:15.8]} 41. Kf3 {[%clk 0:01:27.6]} 41... Kd6 {[%clk
0:00:16.8]} 42. Rc4 {[%clk 0:01:24.2]} 42... Rb7 {[%clk 0:00:16.8]} 43. b4
{[%clk 0:01:25.1]} 43... Ne7 {[%clk 0:00:14.5]} 44. Ke4 {[%clk 0:01:22.3]} 44...
Nc6 {[%clk 0:00:10.6]} 45. Be3 {[%clk 0:01:17.4]} 45... Re7+ {[%clk 0:00:08.8]}
46. Kd3 {[%clk 0:01:18.3]} 46... Rb7 {[%clk 0:00:09.5]} 47. Bc5+ {[%clk
0:01:17.5]} 47... Kd5 {[%clk 0:00:10.2]} 48. Bf8 {[%clk 0:01:06.9]} 48... Rb5
{[%clk 0:00:06.2]} 49. Kc3 {[%clk 0:01:04.7]} 49... Nb8 {[%clk 0:00:05]} 50. Rc7
{[%clk 0:00:58.2]} 50... Ke6 {[%clk 0:00:04.9]} 51. Re7+ {[%clk 0:00:58.3]}
51... Kd5 {[%clk 0:00:04.6]} 52. Rxf7 {[%clk 0:00:58.3]} 1-0

[Event "*** Titled Tuesday 3|2 Blitz"]
[Site "Chess.com"]
[Date "2015.07.07"]
[Round "5"]
[White "VSERGUEI"]
[Black "KyronGriffith"]
[Result "1-0"]
[WhiteElo "2545"]
[BlackElo "2259"]
[TimeControl "180+2"]
[EndTime "12:01:34 PDT"]
[Termination "VSERGUEI won by resignation"]

1. d4 {[%clk 0:03:01.9]} 1... Nf6 {[%clk 0:02:59.6]} 2. c4 {[%clk 0:03:02.8]}
2... c5 {[%clk 0:03:00.6]} 3. d5 {[%clk 0:03:03.6]} 3... e6 {[%clk 0:03:02.2]}
4. Nc3 {[%clk 0:03:04.1]} 4... exd5 {[%clk 0:03:03.2]} 5. cxd5 {[%clk
0:03:05.6]} 5... d6 {[%clk 0:03:04.8]} 6. Nf3 {[%clk 0:03:06.6]} 6... g6 {[%clk
0:03:05.5]} 7. Bg5 {[%clk 0:03:07.5]} 7... Bg7 {[%clk 0:03:04.7]} 8. Nd2 {[%clk
0:03:07.6]} 8... O-O {[%clk 0:03:03.2]} 9. e4 {[%clk 0:03:07.9]} 9... h6 {[%clk
0:03:00.9]} 10. Bh4 {[%clk 0:03:08.4]} 10... a6 {[%clk 0:03:02.4]} 11. a4 {[%clk
0:03:08.8]} 11... Re8 {[%clk 0:02:56.8]} 12. Be2 {[%clk 0:03:08.6]} 12... Nbd7
{[%clk 0:02:54.5]} 13. O-O {[%clk 0:03:08.5]} 13... Rb8 {[%clk 0:02:48.4]} 14.
Qc2 {[%clk 0:03:00.5]} 14... g5 {[%clk 0:02:41.4]} 15. Bg3 {[%clk 0:03:00.7]}
15... Ne5 {[%clk 0:02:42.7]} 16. a5 {[%clk 0:02:56.9]} 16... Nfd7 {[%clk
0:02:36.2]} 17. Kh1 {[%clk 0:02:51.4]} 17... Qe7 {[%clk 0:02:27.8]} 18. f4
{[%clk 0:02:48.8]} 18... gxf4 {[%clk 0:02:29]} 19. Rxf4 {[%clk 0:02:47]} 19...
Ng6 {[%clk 0:02:29.9]} 20. Rf2 {[%clk 0:02:45.8]} 20... Nde5 {[%clk 0:02:31.4]}
21. h3 {[%clk 0:02:42.4]} 21... b5 {[%clk 0:02:29.4]} 22. axb6 {[%clk
0:02:42.6]} 22... Rxb6 {[%clk 0:02:30.4]} 23. Kh2 {[%clk 0:02:30.1]} 23... Bf6
{[%clk 0:02:17.1]} 24. Raf1 {[%clk 0:02:21]} 24... Bh4 {[%clk 0:02:17.5]} 25.
Bxh4 {[%clk 0:02:17.4]} 25... Qxh4 {[%clk 0:02:18.2]} 26. Nf3 {[%clk 0:02:09.7]}
26... Qf4+ {[%clk 0:01:51.3]} 27. Kh1 {[%clk 0:02:02.8]} 27... Qe3 {[%clk
0:01:46.7]} 28. Nd1 {[%clk 0:01:53.8]} 28... Qb3 {[%clk 0:01:46.8]} 29. Qc1
{[%clk 0:01:52.6]} 29... Kg7 {[%clk 0:01:38.7]} 30. Ne3 {[%clk 0:01:46.5]} 30...
Qxb2 {[%clk 0:01:36.8]} 31. Qe1 {[%clk 0:01:37.2]} 31... Qb4 {[%clk 0:01:30.3]}
32. Qc1 {[%clk 0:01:36.9]} 32... Qb2 {[%clk 0:01:29.1]} 33. Qe1 {[%clk
0:01:36.8]} 33... Qb4 {[%clk 0:01:30]} 34. Nd2 {[%clk 0:01:35.9]} 34... a5
{[%clk 0:01:20.5]} 35. Nf5+ {[%clk 0:01:36.1]} 35... Kh7 {[%clk 0:01:15.5]} 36.
Bh5 {[%clk 0:01:33.3]} 36... Bxf5 {[%clk 0:01:11.2]} 37. exf5 {[%clk 0:01:30.1]}
37... Ne7 {[%clk 0:01:00]} 38. Bxf7 {[%clk 0:01:30.1]} 38... Rf8 {[%clk
0:00:37.6]} 39. Bg6+ {[%clk 0:01:29.6]} 39... Kh8 {[%clk 0:00:30]} 40. Qe3
{[%clk 0:01:28.8]} 40... Qh4 {[%clk 0:00:26.9]} 41. Rf4 {[%clk 0:01:13.3]} 41...
Nxd5 {[%clk 0:00:25.2]} 42. Qxe5+ {[%clk 0:01:13.8]} 42... dxe5 {[%clk
0:00:25.3]} 43. Rxh4 {[%clk 0:01:14.6]} 43... Kg7 {[%clk 0:00:27]} 44. Re4
{[%clk 0:01:09.6]} 44... Rb2 {[%clk 0:00:19.5]} 45. Nc4 {[%clk 0:01:06.2]} 45...
Rb4 {[%clk 0:00:20.5]} 46. Rxe5 {[%clk 0:01:05.4]} 46... Rxc4 {[%clk 0:00:20.9]}
47. Rxd5 {[%clk 0:01:06.5]} 47... a4 {[%clk 0:00:22.3]} 48. Rd7+ {[%clk
0:01:05.6]} 48... Kf6 {[%clk 0:00:23.3]} 49. Rd6+ {[%clk 0:01:06.4]} 49... Kg7
{[%clk 0:00:24]} 50. Bh5 {[%clk 0:01:04.8]} 50... Ra8 {[%clk 0:00:24.2]} 51. f6+
{[%clk 0:01:05.3]} 51... Kf8 {[%clk 0:00:25]} 52. Rd7 {[%clk 0:01:02.8]} 52...
a3 {[%clk 0:00:25.9]} 53. Rh7 {[%clk 0:01:03.2]} 53... Kg8 {[%clk 0:00:25.1]}
54. Bg6 {[%clk 0:01:04.1]} 54... Rca4 {[%clk 0:00:07.5]} 55. f7+ {[%clk
0:00:52.5]} 55... Kf8 {[%clk 0:00:08.8]} 56. Be4 {[%clk 0:00:49.4]} 56... a2
{[%clk 0:00:07]} 57. Bxa8 {[%clk 0:00:47.3]} 1-0

[Event "*** Titled Tuesday 3|2 Blitz"]
[Site "Chess.com"]
[Date "2015.07.07"]
[Round "5"]
[White "amaidel"]
[Black "TheLancer"]
[Result "0-1"]
[WhiteElo "2325"]
[BlackElo "2284"]
[TimeControl "180+2"]
[EndTime "12:01:38 PDT"]
[Termination "TheLancer won by resignation"]

1. d4 {[%clk 0:03:01.9]} 1... Nf6 {[%clk 0:02:57.9]} 2. Nf3 {[%clk 0:03:02.5]}
2... e6 {[%clk 0:02:58.2]} 3. c4 {[%clk 0:03:02.1]} 3... Bb4+ {[%clk 0:02:59.1]}
4. Nbd2 {[%clk 0:03:01]} 4... Nc6 {[%clk 0:02:58.9]} 5. g3 {[%clk 0:03:00.1]}
5... d6 {[%clk 0:02:59.3]} 6. Bg2 {[%clk 0:03:00.8]} 6... Bxd2+ {[%clk 0:02:58]}
7. Bxd2 {[%clk 0:03:00.4]} 7... e5 {[%clk 0:02:59.3]} 8. Bc3 {[%clk 0:02:57.8]}
8... Qe7 {[%clk 0:02:55.3]} 9. dxe5 {[%clk 0:02:56.9]} 9... dxe5 {[%clk
0:02:55.9]} 10. O-O {[%clk 0:02:57.7]} 10... Ne4 {[%clk 0:02:49.8]} 11. Qb3
{[%clk 0:02:45.6]} 11... Nxc3 {[%clk 0:02:48]} 12. Qxc3 {[%clk 0:02:46.5]} 12...
O-O {[%clk 0:02:44.9]} 13. b4 {[%clk 0:02:44.6]} 13... Qxb4 {[%clk 0:02:29]} 14.
Qxb4 {[%clk 0:02:40]} 14... Nxb4 {[%clk 0:02:30.9]} 15. Nxe5 {[%clk 0:02:40.5]}
15... Re8 {[%clk 0:02:32.5]} 16. Nd3 {[%clk 0:02:33.3]} 16... Nc2 {[%clk
0:02:07.8]} 17. Rac1 {[%clk 0:02:33.1]} 17... Nd4 {[%clk 0:02:08.6]} 18. Rb1
{[%clk 0:02:22.6]} 18... Nxe2+ {[%clk 0:02:05.9]} 19. Kh1 {[%clk 0:02:23.4]}
19... Bf5 {[%clk 0:02:03.3]} 20. Rb3 {[%clk 0:02:09.2]} 20... Rad8 {[%clk
0:01:38.2]} 21. Nb4 {[%clk 0:02:01.1]} 21... c6 {[%clk 0:01:33.5]} 22. a4 {[%clk
0:01:37.3]} 22... Nd4 {[%clk 0:01:26.5]} 23. Rb2 {[%clk 0:01:37.5]} 23... Re2
{[%clk 0:01:11]} 24. Rxe2 {[%clk 0:01:29]} 24... Nxe2 {[%clk 0:01:12.9]} 25. Re1
{[%clk 0:01:29]} 25... Nc3 {[%clk 0:01:12.1]} 26. a5 {[%clk 0:01:25.7]} 26...
Rd1 {[%clk 0:01:06.3]} 27. Rxd1 {[%clk 0:01:20.9]} 27... Nxd1 {[%clk 0:01:08.2]}
28. a6 {[%clk 0:01:08.4]} 28... bxa6 {[%clk 0:00:44.7]} 29. Nxc6 {[%clk
0:01:07]} 29... Be6 {[%clk 0:00:38]} 30. c5 {[%clk 0:01:01.4]} 30... Nxf2+
{[%clk 0:00:39.1]} 31. Kg1 {[%clk 0:01:02.1]} 31... Nd3 {[%clk 0:00:40.2]} 32.
Nxa7 {[%clk 0:00:38.1]} 32... Nxc5 {[%clk 0:00:40.1]} 33. Nc6 {[%clk 0:00:39.4]}
33... Kf8 {[%clk 0:00:38.8]} 34. Kf2 {[%clk 0:00:40.6]} 34... Bd7 {[%clk
0:00:33.9]} 35. Na5 {[%clk 0:00:39]} 35... Bb5 {[%clk 0:00:32.1]} 36. Ke3 {[%clk
0:00:39.4]} 36... Ke7 {[%clk 0:00:32.7]} 37. Kd4 {[%clk 0:00:39.8]} 37... Kd6
{[%clk 0:00:34.3]} 38. Nc4+ {[%clk 0:00:32.6]} 38... Bxc4 {[%clk 0:00:34.9]} 39.
Kxc4 {[%clk 0:00:34.5]} 39... a5 {[%clk 0:00:22.1]} 40. Kb5 {[%clk 0:00:35.2]}
40... a4 {[%clk 0:00:21.6]} 41. Kb4 {[%clk 0:00:34.6]} 41... h6 {[%clk
0:00:12.5]} 42. Bf3 {[%clk 0:00:35.2]} 42... f5 {[%clk 0:00:11.8]} 43. Bg2
{[%clk 0:00:36.1]} 43... g5 {[%clk 0:00:12.6]} 44. Bf3 {[%clk 0:00:36.9]} 44...
g4 {[%clk 0:00:09.8]} 45. Bg2 {[%clk 0:00:38]} 45... h5 {[%clk 0:00:11]} 46. Ba8
{[%clk 0:00:36.9]} 46... Nd3+ {[%clk 0:00:07.8]} 47. Kxa4 {[%clk 0:00:37.5]}
47... Ke5 {[%clk 0:00:09.3]} 48. Kb3 {[%clk 0:00:37.9]} 48... Kd4 {[%clk
0:00:10.7]} 49. Kc2 {[%clk 0:00:37.8]} 49... Ke3 {[%clk 0:00:11.5]} 50. Kd1
{[%clk 0:00:38.5]} 50... Kf2 {[%clk 0:00:10.9]} 51. Kd2 {[%clk 0:00:37.7]} 51...
Ne5 {[%clk 0:00:10.1]} 52. Kc3 {[%clk 0:00:34.9]} 52... Nf3 {[%clk 0:00:11.2]}
53. Bd5 {[%clk 0:00:32.6]} 53... Nxh2 {[%clk 0:00:09.8]} 54. Bf7 {[%clk
0:00:33.8]} 54... Kxg3 {[%clk 0:00:09.5]} 55. Bxh5 {[%clk 0:00:35.2]} 55... f4
{[%clk 0:00:11.4]} 56. Kd2 {[%clk 0:00:35.3]} 56... f3 {[%clk 0:00:12.8]} 57.
Bg6 {[%clk 0:00:33.5]} 57... f2 {[%clk 0:00:13.3]} 58. Bd3 {[%clk 0:00:34.6]}
58... f1=Q {[%clk 0:00:14.6]} 59. Bxf1 {[%clk 0:00:35.5]} 59... Nxf1+ {[%clk
0:00:16.5]} 60. Ke2 {[%clk 0:00:36.5]} 60... Kg2 {[%clk 0:00:18.2]} 0-1